fUST/lending_fUST_20260112
["ID","MTS","AMOUNT","RATE_DAILY","PERIOD"]
[401364787,1768158480007,314.16,5.974e-05,2]
[401364788,1768158480290,314.16,5.974e-05,2]
[401364799,1768158604282,473.45,5e-05,2]
[401364800,1768158604823,473.45,5.5e-05,2]
[401364801,1768158605398,473.45,6e-05,2]
[401364802,1768158606192,473.45,6.5e-05,2]
[401364803,1768158606785,473.45,7.1e-05,2]
[401364804,1768158607340,473.45,7.6e-05,2]
[401364805,1768158607961,473.45,8.1e-05,2]
[401364806,1768158608864,473.45,8.6e-05,2]
[401364807,1768158630574,188.19,7.244e-05,2]
[401364808,1768158630963,250.92,7.801e-05,2]
[401364809,1768158631359,313.64,8.359e-05,2]
[401364817,1768158632107,376.37,8.916e-05,2]
[401364827,1768158632309,-473.45,9.1e-05,2]
[401364828,1768158632318,-427.12688061,9.298e-05,2]
[401364830,1768158632328,-439.1,9.473e-05,2]
[401364832,1768158632337,-300.0,9.496e-05,2]
[401364833,1768158632347,-66218.76467261,9.497e-05,2]
[401364835,1768158632358,-890.18,9.497e-05,2]
[401364836,1768158632369,-9619.91025749,9.497e-05,2]
[401364837,1768158632380,-1400.08699331,9.497e-05,2]
[401364841,1768158638384,-15036.17637826,9.497e-05,2]
[401364842,1768158638401,-553.0,9.497e-05,2]
[401364843,1768158638411,-50000.0,9.596e-05,2]
[401364844,1768158638422,-300.0,9.6e-05,2]
[401364845,1768158638432,-300.0,9.6e-05,2]
[401364846,1768158638442,-300.0,9.6e-05,2]
[401364847,1768158638451,-300.0,9.6e-05,2]
[401364848,1768158638461,-300.0,9.6e-05,2]
[401364849,1768158638471,-300.0,9.6e-05,2]
[401364850,1768158638481,-300.0,9.6e-05,2]
[401364851,1768158638492,-300.0,9.6e-05,2]
[401364852,1768158638502,-300.0,9.6e-05,2]
[401364853,1768158638512,-300.0,9.6e-05,2]
[401364854,1768158638522,-300.0,9.6e-05,2]
[401364855,1768158638532,-300.0,9.6e-05,2]
[401364856,1768158638542,-300.0,9.6e-05,2]
[401364857,1768158638552,-300.0,9.6e-05,2]
[401364858,1768158638562,-300.0,9.6e-05,2]
[401364859,1768158638572,-600.0,9.6e-05,2]
[401364860,1768158638586,-473.45,9.6e-05,2]
[401364861,1768158638596,-153.66,9.7e-05,2]
[401364862,1768158638607,-2094.35361075,0.0001,2]
[401364863,1768158638619,-286.8341771,0.0001,2]
[401364864,1768158638640,-853.015828,0.0001,2]
[401364865,1768158638652,-1111.92396386,0.0001,2]
[401364866,1768158638662,-501.83,0.0001003,2]
[401364867,1768158638672,-473.45,0.000101,2]
[401364868,1768158638683,-420.0,0.00010446,2]
[401364869,1768158638693,-153.66,0.000105,2]
[401364870,1768158638703,-720.0,0.0001056,2]
[401364871,1768158638714,-564.56,0.00010588,2]
[401364872,1768158638724,-473.45,0.000106,2]
[401364873,1768158638734,-430.70124315,0.00010903,2]
[401364874,1768158638745,-999.0,0.00010959,2]
[401364875,1768158638755,-151.0,0.00011,2]
[401364876,1768158638765,-627.29,0.00011145,2]
[401364877,1768158638775,-473.45,0.000112,2]
[401364878,1768158638786,-504.00971912,0.00011298,2]
[401364879,1768158638797,-153.66,0.000113,2]
[401364880,1768158638807,-587.0,0.0001149,2]
[401364881,1768158638818,-151.0,0.000116,2]
[401364882,1768158638829,-864.0,0.00011616,2]
[401364883,1768158638839,-473.45,0.000117,2]
[401364884,1768158638850,-153.66,0.000121,2]
[401364885,1768158638861,-151.0,0.000122,2]
[401364886,1768158638871,-473.45,0.000122,2]
[401364887,1768158638882,-572.37,0.00012329,2]
[401364888,1768158638892,-476.97,0.00012329,2]
[401364889,1768158638903,-397.48,0.00012329,2]
[401364890,1768158638913,-331.23,0.00012329,2]
[401364891,1768158638923,-276.03,0.00012329,2]
[401364892,1768158638933,-230.02,0.00012329,2]
[401364893,1768158638942,-191.68,0.00012329,2]
[401364894,1768158638952,-250.0,0.00012549,2]
[401364895,1768158638963,-823.0,0.00012639,2]
[401364896,1768158638972,-473.45,0.000127,2]
[401364897,1768158638983,-1000.0,0.00012778,2]
[401364898,1768158638992,-187.49,0.000128,2]
[401364899,1768158639003,-187.49,0.000128,2]
[401364900,1768158639013,-187.49,0.000128,2]
[401364901,1768158639023,-187.49,0.000128,2]
[401364902,1768158639033,-187.49,0.000128,2]
[401364903,1768158639043,-187.49,0.000128,2]
[401364904,1768158639053,-187.49,0.000128,2]
[401364905,1768158639065,-153.62,0.000128,2]
[401364906,1768158639075,-151.0,0.000128,2]
[401364907,1768158639085,-153.66,0.000129,2]
[401364908,1768158639095,-473.45,0.000132,2]
[401364909,1768158639104,-500.0,0.00013273,2]
[401364910,1768158639116,-500.0,0.00013273,2]
[401364911,1768158639126,-500.0,0.00013273,2]
[401364912,1768158639136,-500.0,0.00013273,2]
[401364913,1768158639146,-500.0,0.00013273,2]
[401364914,1768158639156,-500.0,0.00013273,2]
[401364915,1768158639166,-500.0,0.00013273,2]
[401364916,1768158639176,-500.0,0.00013273,2]
[401364917,1768158639186,-500.0,0.00013273,2]
[401364918,1768158639196,-500.0,0.00013273,2]
[401364919,1768158639206,-500.0,0.00013273,2]
[401364920,1768158639216,-500.0,0.00013273,2]
[401364921,1768158639226,-500.0,0.00013273,2]
[401364922,1768158639237,-500.0,0.00013273,2]
[401364923,1768158639247,-500.0,0.00013273,2]
[401364924,1768158639256,-500.0,0.00013273,2]
[401364925,1768158639267,-500.0,0.00013273,2]
[401364926,1768158639276,-500.0,0.00013273,2]
[401364927,1768158639286,-500.0,0.00013273,2]
[401364928,1768158639295,-500.0,0.00013273,2]
[401364929,1768158639305,-500.76042299,0.00013273,2]
[401364930,1768158639315,-495.22027723,0.00013273,2]
[401364931,1768158639324,-500.0,0.00013273,2]
[401364932,1768158639334,-618.64825079,0.00013273,2]
[401364933,1768158639344,-500.0,0.00013273,2]
[401364934,1768158639353,-500.0,0.00013273,2]
[401364935,1768158639363,-402.502339,0.00013273,2]
[401364936,1768158639373,-647.41342126,0.00013273,2]
[401364937,1768158639383,-500.0,0.00013273,2]
[401364938,1768158639392,-500.0,0.00013273,2]
[401364939,1768158639402,-500.0,0.00013273,2]
[401364940,1768158639411,-500.0,0.00013273,2]
[401364941,1768158639421,-500.0,0.00013273,2]
[401364942,1768158639431,-500.0,0.00013273,2]
[401364943,1768158639441,-500.0,0.00013273,2]
[401364944,1768158639450,-500.0,0.00013273,2]
[401364945,1768158639459,-500.0,0.00013273,2]
[401364946,1768158639469,-500.0,0.00013273,2]
[401364947,1768158639479,-315.27616607,0.00013273,2]
[401364948,1768158639489,-500.0,0.00013273,2]
[401364949,1768158639511,-500.0,0.00013273,2]
[401364950,1768158639658,-466.87575213,0.00013273,2]
[401364951,1768158639668,-500.0,0.00013273,2]
[401364952,1768158639677,-500.0,0.00013273,2]
[401364953,1768158639687,-500.0,0.00013273,2]
[401364954,1768158639697,-500.0,0.00013273,2]
[401364955,1768158639706,-500.0,0.00013273,2]
[401364956,1768158639716,-580.89255763,0.00013298,2]
[401364957,1768158639726,-151.0,0.000133,2]
[401364958,1768158639736,-153.66,0.000136,2]
[401364959,1768158639745,-300.0,0.00013673,2]
[401364960,1768158639754,-500.0,0.00013698,2]
[401364961,1768158639765,-500.0,0.00013698,2]
[401364962,1768158639775,-500.0,0.00013698,2]
[401364963,1768158639784,-500.0,0.00013698,2]
[401364964,1768158639794,-500.0,0.00013698,2]
[401364965,1768158639803,-500.0,0.00013698,2]
[401364966,1768158639813,-500.0,0.00013698,2]
[401364967,1768158639823,-500.0,0.00013698,2]
[401364968,1768158639832,-500.0,0.00013698,2]
[401364969,1768158639843,-500.0,0.00013698,2]
[401364970,1768158639853,-500.0,0.00013698,2]
[401364971,1768158639863,-500.0,0.00013698,2]
[401364972,1768158639873,-500.0,0.00013698,2]
[401364973,1768158639882,-500.0,0.00013698,2]
[401364974,1768158639892,-500.0,0.00013698,2]
[401364975,1768158639902,-500.0,0.00013698,2]
[401364977,1768158639911,-500.0,0.00013698,2]
[401364978,1768158639920,-500.0,0.00013698,2]
[401364979,1768158639930,-500.0,0.00013698,2]
[401364980,1768158639939,-500.0,0.00013698,2]
[401364981,1768158639948,-500.0,0.00013698,2]
[401364982,1768158639957,-500.0,0.00013698,2]
[401364983,1768158639966,-500.0,0.00013698,2]
[401364984,1768158639975,-500.0,0.00013698,2]
[401364985,1768158639984,-500.0,0.00013698,2]
[401364986,1768158639994,-500.0,0.00013698,2]
[401364987,1768158640003,-500.0,0.00013698,2]
[401364988,1768158640013,-500.0,0.00013698,2]
[401364989,1768158640023,-500.0,0.00013698,2]
[401364990,1768158640033,-500.0,0.00013698,2]
[401364991,1768158640043,-500.0,0.00013698,2]
[401364992,1768158640053,-500.0,0.00013698,2]
[401364995,1768158640063,-500.0,0.00013698,2]
[401364997,1768158640072,-500.0,0.00013698,2]
[401364999,1768158640082,-3506.779351,0.00013699,2]
[401365001,1768158640092,-1000.0,0.00013699,2]
[401365002,1768158640102,-500.0,0.00013699,2]
[401365003,1768158640112,-502.38932755,0.00013699,2]
[401365004,1768158640122,-470.22693033,0.00013699,2]
[401365005,1768158640133,-611.85295008,0.00013699,2]
[401365006,1768158640143,-500.0,0.00013699,2]
[401365007,1768158640152,-501.52224721,0.00013699,2]
[401365008,1768158640162,-500.0,0.00013699,2]
[401365009,1768158640172,-500.0,0.00013699,2]
[401365010,1768158640182,-500.0,0.00013699,2]
[401365011,1768158640191,-500.93038909,0.00013699,2]
[401365012,1768158640201,-500.0,0.00013699,2]
[401365013,1768158640210,-500.0,0.00013699,2]
[401365014,1768158640220,-500.0,0.00013699,2]
[401365015,1768158640229,-500.0,0.00013699,2]
[401365016,1768158640238,-500.0,0.00013699,2]
[401365017,1768158640248,-500.0,0.00013699,2]
[401365018,1768158640257,-500.0,0.00013699,2]
[401365019,1768158640267,-160.68274537,0.00013699,2]
[401365021,1768158640277,-500.0,0.00013699,2]
[401365022,1768158640287,-500.0,0.00013699,2]
[401365023,1768158640296,-500.0,0.00013699,2]
[401365024,1768158640306,-500.0,0.00013699,2]
[401365025,1768158640316,-500.0,0.00013699,2]
[401365026,1768158640327,-461.0678501,0.00013699,2]
[401365027,1768158640337,-500.0,0.00013699,2]
[401365028,1768158640347,-500.0,0.00013699,2]
[401365029,1768158640356,-500.0,0.00013699,2]
[401365030,1768158640365,-500.0,0.00013699,2]
[401365031,1768158640375,-500.0,0.00013699,2]
[401365033,1768158640385,-500.0,0.00013699,2]
[401365035,1768158640394,-500.0,0.00013699,2]
[401365037,1768158640403,-500.0,0.00013699,2]
[401365039,1768158640412,-441.79967602,0.00013699,2]
[401365041,1768158640421,-500.0,0.00013699,2]
[401365043,1768158640431,-500.0,0.00013699,2]
[401365045,1768158640441,-500.0,0.00013699,2]
[401365047,1768158640450,-501.32276914,0.00013699,2]
[401365049,1768158640460,-500.0,0.00013699,2]
[401365051,1768158640470,-268.13097792,0.00013699,2]
[401365053,1768158640479,-500.0,0.00013699,2]
[401365056,1768158640488,-500.0,0.00013699,2]
[401365058,1768158640498,-500.0,0.00013699,2]
[401365059,1768158640507,-500.0,0.00013699,2]
[401365060,1768158640516,-313.17222022,0.00013699,2]
[401365061,1768158640525,-500.0,0.00013699,2]
[401365062,1768158640534,-500.0,0.00013699,2]
[401365063,1768158640542,-500.0,0.00013699,2]
[401365064,1768158640551,-500.0,0.00013699,2]
[401365065,1768158640560,-159.62784546,0.00013699,2]
[401365066,1768158640568,-500.0,0.00013699,2]
[401365067,1768158640580,-500.0,0.00013699,2]
[401365068,1768158640589,-500.0,0.00013699,2]
[401365069,1768158640597,-500.0,0.00013699,2]
[401365070,1768158640606,-500.0,0.00013699,2]
[401365071,1768158640615,-500.0,0.00013699,2]
[401365072,1768158640626,-500.0,0.00013699,2]
[401365073,1768158640634,-500.0,0.00013699,2]
[401365074,1768158640643,-500.0,0.00013699,2]
[401365075,1768158640653,-500.0,0.00013699,2]
[401365076,1768158640662,-500.0,0.00013699,2]
[401365077,1768158640671,-500.0,0.00013699,2]
[401365078,1768158640680,-500.0,0.00013699,2]
[401365079,1768158640688,-366.95119537,0.00013699,2]
[401365080,1768158640697,-500.0,0.00013699,2]
[401365081,1768158640706,-500.0,0.00013699,2]
[401365082,1768158640715,-473.45,0.000137,2]
[401365083,1768158640723,-500.0,0.0001382,2]
[401365084,1768158640732,-500.0,0.0001382,2]
[401365086,1768158640741,-1000.0,0.00013821,2]
[401365087,1768158640749,-1000.0,0.00013821,2]
[401365088,1768158640758,-1000.0,0.00013821,2]
[401365089,1768158640766,-506.38443798,0.00013821,2]
[401365090,1768158640775,-1113.91769968,0.00013821,2]
[401365091,1768158640784,-1000.80134157,0.00013821,2]
[401365092,1768158640793,-1000.0,0.00013821,2]
[401365093,1768158640801,-1000.0,0.00013821,2]
[401365094,1768158640810,-1000.0,0.00013821,2]
[401365096,1768158640819,-1000.0,0.00013821,2]
[401365097,1768158640828,-1000.0,0.00013821,2]
[401365098,1768158640838,-1000.0,0.00013821,2]
[401365100,1768158640847,-1000.0,0.00013821,2]
[401365102,1768158640856,-1000.0,0.00013821,2]
[401365104,1768158640865,-1000.0,0.00013821,2]
[401365106,1768158640874,-1000.0,0.00013821,2]
[401365108,1768158640884,-1000.0,0.00013821,2]
[401365110,1768158640893,-1000.0,0.00013821,2]
[401365112,1768158640902,-1000.0,0.00013821,2]
[401365113,1768158640911,-204.07351011,0.00013821,2]
[401365115,1768158640920,-1000.0,0.00013821,2]
[401365117,1768158640929,-1000.0,0.00013821,2]
[401365119,1768158640938,-1000.0,0.00013821,2]
[401365121,1768158640947,-889.43647634,0.00013821,2]
[401365123,1768158640956,-973.2526551,0.00013821,2]
[401365125,1768158640965,-1000.0,0.00013821,2]
[401365127,1768158640974,-502.72164401,0.00013821,2]
[401365129,1768158640983,-1000.0,0.00013821,2]
[401365131,1768158640992,-1000.0,0.00013821,2]
[401365133,1768158641000,-1000.0,0.00013821,2]
[401365135,1768158641010,-1000.0,0.00013821,2]
[401365137,1768158641020,-1000.0,0.00013821,2]
[401365139,1768158641029,-1000.0,0.00013821,2]
[401365141,1768158641039,-1000.0,0.00013821,2]
[401365143,1768158641048,-1000.0,0.00013821,2]
[401365145,1768158641057,-1000.0,0.00013821,2]
[401365147,1768158641066,-1000.0,0.00013821,2]
[401365150,1768158641076,-1000.0,0.00013821,2]
[401365152,1768158641085,-1000.0,0.00013821,2]
[401365154,1768158641095,-151.0,0.000139,2]
[401365155,1768158641105,-1152.0,0.00013903,2]
[401365158,1768158641116,-1000.0,0.00014056,2]
[401365160,1768158641125,-244.0,0.00014056,2]
[401365162,1768158641135,-473.45,0.000142,2]
[401365164,1768158641144,-600.0,0.00014221,2]
[401365165,1768158641153,-661.478767,0.00014247,2]
[401365167,1768158641162,-602.53259662,0.00014247,2]
[401365169,1768158641172,-1000.0,0.00014247,2]
[401365171,1768158641182,-350.0,0.00014247,2]
[401365173,1768158641191,-502.56553603,0.00014247,2]
[401365175,1768158641201,-581.34216933,0.00014247,2]
[401365177,1768158641210,-1000.0,0.00014247,2]
[401365179,1768158641220,-501.33075681,0.00014247,2]
[401365181,1768158641229,-1000.0,0.00014247,2]
[401365183,1768158641238,-1000.0,0.00014247,2]
[401365185,1768158641248,-1000.0,0.00014247,2]
[401365187,1768158641258,-1000.0,0.00014247,2]
[401365189,1768158641267,-1000.0,0.00014247,2]
[401365191,1768158641276,-1000.0,0.00014247,2]
[401365193,1768158641285,-1000.0,0.00014247,2]
[401365195,1768158641294,-1000.0,0.00014247,2]
[401365197,1768158641303,-252.75899042,0.00014247,2]
[401365199,1768158641313,-1000.0,0.00014247,2]
[401365201,1768158641322,-776.28275624,0.00014247,2]
[401365203,1768158641331,-1000.0,0.00014247,2]
[401365205,1768158641340,-1000.0,0.00014247,2]
[401365207,1768158641350,-1000.0,0.00014247,2]
[401365209,1768158641359,-1000.0,0.00014247,2]
[401365211,1768158641368,-1000.0,0.00014247,2]
[401365213,1768158641378,-443.77041137,0.00014247,2]
[401365215,1768158641387,-1005.42705469,0.00014247,2]
[401365217,1768158641397,-1000.0,0.00014247,2]
[401365219,1768158641406,-1000.0,0.00014247,2]
[401365221,1768158641415,-1000.0,0.00014247,2]
[401365223,1768158641424,-1000.0,0.00014247,2]
[401365225,1768158641434,-1000.0,0.00014247,2]
[401365227,1768158641443,-1000.0,0.00014247,2]
[401365229,1768158641452,-1000.0,0.00014247,2]
[401365231,1768158641462,-646.68328603,0.00014247,2]
[401365233,1768158641471,-1000.0,0.00014247,2]
[401365235,1768158641480,-1000.0,0.00014247,2]
[401365237,1768158641490,-1000.0,0.00014247,2]
[401365239,1768158641499,-1000.0,0.00014247,2]
[401365241,1768158641508,-1000.0,0.00014247,2]
[401365243,1768158641518,-1000.0,0.00014247,2]
[401365245,1768158641527,-1000.0,0.00014247,2]
[401365247,1768158641536,-1000.0,0.00014247,2]
[401365249,1768158641545,-1000.0,0.00014247,2]
[401365251,1768158641554,-192.77974704,0.00014247,2]
[401365253,1768158641563,-1000.0,0.00014247,2]
[401365255,1768158641574,-1000.0,0.00014247,2]
[401365257,1768158641585,-1029.61129365,0.00014247,2]
[401365259,1768158641594,-1000.0,0.00014247,2]
[401365261,1768158641603,-1138.41119879,0.00014247,2]
[401365263,1768158641612,-1000.0,0.00014247,2]
[401365265,1768158641622,-1000.0,0.00014247,2]
[401365267,1768158641632,-345.73139261,0.00014247,2]
[401365269,1768158641641,-151.0,0.000143,2]
[401365271,1768158641654,-500.0,0.00014368,2]
[401365273,1768158641663,-500.0,0.00014368,2]
[401365275,1768158641672,-1500.0,0.00014368,2]
[401365277,1768158641681,-1500.0,0.00014368,2]
[401365279,1768158641690,-282.09902954,0.00014368,2]
[401365281,1768158641699,-1500.0,0.00014368,2]
[401365283,1768158641708,-1500.0,0.00014368,2]
[401365285,1768158641718,-1103.18109463,0.00014368,2]
[401365287,1768158641727,-1151.39515074,0.00014368,2]
[401365289,1768158641736,-1500.0,0.00014368,2]
[401365291,1768158641745,-1500.0,0.00014368,2]
[401365293,1768158641755,-1500.0,0.00014368,2]
[401365295,1768158641764,-1500.0,0.00014368,2]
[401365297,1768158641773,-501.65991965,0.00014368,2]
[401365299,1768158641782,-1500.0,0.00014368,2]
[401365301,1768158641791,-1500.0,0.00014368,2]
[401365303,1768158641800,-1500.0,0.00014368,2]
[401365305,1768158641809,-331.89845241,0.00014368,2]
[401365307,1768158641818,-1180.33880903,0.00014368,2]
[401365309,1768158641828,-1500.0,0.00014368,2]
[401365311,1768158641837,-1006.27641738,0.00014368,2]
[401365313,1768158641846,-1500.0,0.00014368,2]
[401365315,1768158641856,-1500.0,0.00014368,2]
[401365317,1768158641865,-1500.0,0.00014368,2]
[401365319,1768158641874,-1500.0,0.00014368,2]
[401365321,1768158641883,-1500.0,0.00014368,2]
[401365323,1768158641893,-1500.0,0.00014368,2]
[401365325,1768158641903,-1500.0,0.00014368,2]
[401365327,1768158641912,-1500.0,0.00014368,2]
[401365329,1768158641921,-168.36851892,0.00014368,2]
[401365331,1768158641931,-1500.0,0.00014368,2]
[401365333,1768158641940,-1500.0,0.00014368,2]
[401365335,1768158641950,-1500.0,0.00014368,2]
[401365337,1768158641960,-1500.0,0.00014368,2]
[401365349,1768158641969,-153.66,0.000144,2]
[401365351,1768158642073,-151.0,0.000145,2]
[401365353,1768158642082,-500.0,0.00014509,2]
[401365355,1768158642093,-500.0,0.00014509,2]
[401365357,1768158642103,-5000.0,0.0001451,2]
[401365359,1768158642112,-500.0,0.00014658,2]
[401365361,1768158642121,-152.48093155,0.00014658,2]
[401365363,1768158642131,-500.0,0.00014658,2]
[401365365,1768158642141,-171.65605742,0.00014658,2]
[401365367,1768158642150,-500.0,0.00014658,2]
[401365369,1768158642159,-500.0,0.00014658,2]
[401365371,1768158642168,-283.8218406,0.00014658,2]
[401365373,1768158642177,-190.86169873,0.00014658,2]
[401365375,1768158642186,-473.45,0.000147,2]
[401365377,1768158642195,-900.0,0.00014768,2]
[401365379,1768158642205,-500.0,0.00014794,2]
[401365381,1768158642214,-239.37126777,0.00014794,2]
[401365383,1768158642223,-1500.0,0.00014795,2]
[401365385,1768158642232,-1500.0,0.00014795,2]
[401365387,1768158642241,-1500.0,0.00014795,2]
[401365389,1768158642250,-1500.0,0.00014795,2]
[401365391,1768158642261,-514.14829436,0.00014795,2]
[401365393,1768158642270,-1500.0,0.00014795,2]
[401365395,1768158642279,-283.84380117,0.00014795,2]
[401365397,1768158642287,-1500.0,0.00014795,2]
[401365399,1768158642296,-1500.0,0.00014795,2]
[401365401,1768158642306,-429.70423336,0.00014795,2]
[401365403,1768158642315,-1500.0,0.00014795,2]
[401365405,1768158642324,-892.83683556,0.00014795,2]
[401365407,1768158642334,-1500.0,0.00014795,2]
[401365409,1768158642343,-1500.0,0.00014795,2]
[401365411,1768158642352,-1304.84096496,0.00014795,2]
[401365414,1768158642363,-1288.05151213,0.00014795,2]
[401365415,1768158642372,-1500.0,0.00014795,2]
[401365417,1768158642381,-1000.0,0.00014795,2]
[401365419,1768158642391,-1500.0,0.00014795,2]
[401365421,1768158642401,-1500.0,0.00014795,2]
[401365423,1768158642412,-1500.0,0.00014795,2]
[401365425,1768158642421,-1000.0,0.00014795,2]
[401365427,1768158642430,-1500.0,0.00014795,2]
[401365429,1768158642440,-1509.97698878,0.00014795,2]
[401365431,1768158642449,-210.18768542,0.00014795,2]
[401365434,1768158642459,-1500.0,0.00014795,2]
[401365436,1768158642468,-1500.0,0.00014795,2]
[401365438,1768158642478,-1500.0,0.00014795,2]
[401365440,1768158642487,-1500.0,0.00014795,2]
[401365442,1768158642496,-1500.0,0.00014795,2]
[401365444,1768158642505,-1500.0,0.00014795,2]
[401365446,1768158642514,-1499.24471264,0.00014795,2]
[401365448,1768158642524,-500.0,0.00014795,2]
[401365450,1768158642533,-1500.0,0.00014795,2]
[401365452,1768158642542,-1500.0,0.00014795,2]
[401365454,1768158642552,-1500.0,0.00014795,2]
[401365456,1768158642561,-1500.0,0.00014795,2]
[401365458,1768158642570,-500.0,0.00014795,2]
[401365459,1768158642582,-177.36085556,0.00014795,2]
[401365462,1768158642592,-500.0,0.00014795,2]
[401365464,1768158642601,-500.0,0.00014795,2]
[401365466,1768158642610,-500.0,0.00014795,2]
[401365468,1768158642620,-161.30460818,0.00014795,2]
[401365469,1768158642630,-100000.0,0.00014882,2]
[401365471,1768158642639,-908.46095488,0.000149,2]
[401365473,1768158642648,-500.0,0.00014916,2]
[401365475,1768158642659,-2000.0,0.00014916,2]
[401365477,1768158642668,-485.3091038,0.00014916,2]
[401365479,1768158642677,-500.0,0.00014916,2]
[401365481,1768158642687,-344.27875605,0.00014916,2]
[401365483,1768158642696,-500.0,0.00014916,2]
[401365485,1768158642705,-500.0,0.00014916,2]
[401365487,1768158642714,-554.02767991,0.00014916,2]
[401365489,1768158642724,-1559.27372905,0.00014916,2]
[401365491,1768158642734,-2000.0,0.00014916,2]
[401365493,1768158642744,-2000.0,0.00014916,2]
[401365495,1768158642753,-2000.0,0.00014916,2]
[401365497,1768158642763,-723.48736773,0.00014916,2]
[401365499,1768158642773,-2000.0,0.00014916,2]
[401365501,1768158642782,-2113.36442406,0.00014916,2]
[401365503,1768158642791,-2000.0,0.00014916,2]
[401365505,1768158642800,-2000.0,0.00014916,2]
[401365507,1768158642810,-2000.0,0.00014916,2]
[401365509,1768158642819,-2000.0,0.00014916,2]
[401365511,1768158642828,-2000.0,0.00014916,2]
[401365513,1768158642837,-2000.0,0.00014916,2]
[401365515,1768158642846,-2000.0,0.00014916,2]
[401365518,1768158642855,-2000.0,0.00014916,2]
[401365520,1768158642865,-2000.0,0.00014916,2]
[401365522,1768158642875,-2000.0,0.00014916,2]
[401365524,1768158642884,-151.25281158,0.00014932,2]
[401365526,1768158642893,-156.8595936,0.00014932,2]
[401365528,1768158642902,-154.82317524,0.00014932,2]
[401365531,1768158642911,-250.48599137,0.00014932,2]
[401365533,1768158642920,-1000.0,0.00015,2]
[401365536,1768158642929,-800.0,0.00015068,2]
[401365539,1768158642939,-151.0,0.000151,2]
[401365542,1768158642948,-153.66,0.000152,2]
[401365545,1768158642957,-1613.0,0.00015293,2]
[401365548,1768158642967,-657.77539614,0.00015298,2]
[401365551,1768158642976,-473.45,0.000153,2]
[401365553,1768158642985,-1200.0,0.00015316,2]
[401365555,1768158642995,-500.0,0.00015342,2]
[401365557,1768158643005,-500.0,0.00015342,2]
[401365559,1768158643015,-2000.0,0.00015342,2]
[401365561,1768158643024,-674.14847626,0.00015342,2]
[401365564,1768158643034,-1089.88646751,0.00015342,2]
[401365565,1768158643043,-2000.0,0.00015342,2]
[401365568,1768158643052,-976.33364724,0.00015342,2]
[401365569,1768158643061,-1000.0,0.00015342,2]
[401365571,1768158643071,-2000.0,0.00015342,2]
[401365574,1768158643080,-1236.28209818,0.00015342,2]
[401365576,1768158643090,-1002.98816345,0.00015342,2]
[401365577,1768158643099,-1839.58703801,0.00015342,2]
[401365579,1768158643109,-2000.0,0.00015342,2]
[401365581,1768158643118,-2000.0,0.00015342,2]
[401365584,1768158643128,-2148.74912763,0.00015342,2]
[401365586,1768158643138,-2000.0,0.00015342,2]
[401365587,1768158643147,-2000.0,0.00015342,2]
[401365589,1768158643157,-516.76085072,0.00015342,2]
[401365591,1768158643167,-2000.0,0.00015342,2]
[401365593,1768158643176,-804.72135436,0.00015342,2]
[401365595,1768158643185,-2000.0,0.00015342,2]
[401365597,1768158643194,-2000.0,0.00015342,2]
[401365599,1768158643203,-2000.0,0.00015342,2]
[401365601,1768158643213,-2000.0,0.00015342,2]